bitfinex/quotes_ETHUSD_20220218
["timestamp","ask_amount","ask_price","bid_price","bid_amount"]
[1645222834889,0.90394,2767.5,2767.0,14.22347929]
[1645222835489,1.80793,2767.5,2767.0,14.22347929]
[1645222837341,0.90394,2767.5,2767.0,14.22347929]
[1645222838740,0.90394,2767.5,2767.0,13.92347929]
[1645222839542,1.80792,2767.5,2767.0,13.92347929]
[1645222839997,0.90394,2767.5,2767.0,13.92347929]
[1645222843733,0.90394,2767.5,2767.0,14.22347929]
[1645222843935,0.90384,2767.7,2767.0,14.22347929]
[1645222844136,8.3138,2768.4,2767.1,3.5]
[1645222844339,0.009211,2768.3,2767.1,3.5]
[1645222844536,0.009211,2768.3,2767.0,14.22347929]
[1645222844936,0.90375,2768.2,2767.4,0.65034716]
[1645222845136,0.90375,2768.2,2767.0,14.22347929]
[1645222845339,0.90373,2768.2,2767.0,14.22347929]
[1645222845636,0.90375,2768.0,2767.0,14.22347929]
[1645222845838,0.90375,2768.0,2767.1,3.5]
[1645222847037,1.61552454,2768.0,2767.0,14.22347929]
[1645222847238,2.51935454,2768.0,2767.0,14.22347929]
[1645222847500,1.61560454,2768.0,2767.0,14.22347929]
[1645222847692,0.90381,2767.8,2767.0,14.22347929]
[1645222848391,0.71177454,2768.0,2767.0,14.22347929]
[1645222848591,0.90376,2768.2,2767.0,14.22347929]
[1645222849598,0.90374,2768.0,2767.0,14.22347929]
[1645222849995,2.71132,2768.2,2767.1,0.9036882]
[1645222850195,0.73549256,2768.1,2767.1,0.9036882]
[1645222850395,0.73549256,2768.1,2767.2,0.3]
[1645222850995,1.63920256,2768.1,2767.2,0.3]
[1645222851235,1.63920256,2768.1,2767.0,14.22347929]
[1645222852038,0.90371,2768.1,2767.0,14.22347929]
[1645222852246,0.14948255,2768.6,2767.0,14.22347929]
[1645222852247,0.49417403,2768.8,2767.1,14.51611616]
[1645222852445,0.5,2769.0,2768.4,0.01200559]
[1645222852642,0.12264895,2769.3,2767.7,10.93]
[1645222852839,0.12264895,2769.6,2767.9,10.93]
[1645222853139,0.80314076,2768.7,2767.7,1.02729262]
[1645222853437,0.80314076,2768.7,2767.7,0.3]
[1645222853639,0.80314076,2768.7,2767.5,4.9276]
[1645222853838,0.80314076,2768.7,2767.6,1.0]
[1645222854437,0.80314076,2768.7,2767.6,0.9036273]
[1645222854843,0.80314076,2768.7,2767.6,1.9036273]
[1645222855089,0.00209098,2768.4,2767.7,3.5]
[1645222855298,0.00209098,2768.4,2767.7,4.40349]
[1645222855497,0.00209098,2768.4,2767.8,1.8068843]
[1645222855689,0.00209098,2768.4,2767.8,0.9034643]
[1645222856089,1.2035,2769.2,2767.8,0.9034643]
[1645222856290,0.00245731,2768.4,2768.1,0.82093926]
[1645222856490,0.00245731,2768.4,2768.1,1.12093926]
[1645222856989,0.00245731,2768.4,2768.1,6.42773856]
[1645222857194,1.2035,2769.2,2768.1,6.42773856]
[1645222857494,1.2035,2769.2,2768.1,2.92773856]
[1645222857495,0.00245742,2768.4,2768.1,2.92773856]
[1645222857690,0.00245742,2768.4,2768.1,3.83111856]
[1645222857890,0.00245742,2768.4,2768.1,2.92773856]
[1645222858390,1.8434637,2769.2,2768.1,2.92773856]
[1645222858589,0.00245742,2768.4,2768.1,2.92773856]
[1645222859438,0.00245742,2768.4,2768.2,1.0]
[1645222859638,0.00443613,2769.5,2768.2,4.9232]
[1645222859841,0.00443613,2769.5,2768.6,0.76925231]
[1645222860044,0.00982722,2769.1,2768.6,0.76925231]
[1645222860242,0.00982722,2769.1,2768.6,1.06925231]
[1645222860841,0.90338,2769.4,2768.6,1.06925231]
[1645222861043,0.00245738,2769.0,2768.6,1.06925231]
[1645222861945,2.71011,2769.7,2768.6,1.06925231]
[1645222861946,0.37152508,2770.1,2768.6,1.06925231]
[1645222862143,3.58364776,2770.2,2768.6,1.06925231]
[1645222862144,1.34399589,2770.2,2769.5,0.81747132]
[1645222862348,5.94867523,2770.5,2769.5,0.81747132]
[1645222862349,1.34399589,2770.3,2769.5,1.72039132]
[1645222862611,1.34399589,2770.4,2769.5,1.72039132]
[1645222862802,1.34399589,2770.4,2769.6,0.3]
[1645222863000,1.34816085,2770.5,2769.6,0.3]
[1645222863401,0.00416496,2770.5,2770.1,0.88230915]
[1645222863603,0.00416496,2770.5,2770.1,0.66269301]
[1645222863803,0.00416496,2770.5,2770.1,0.96269301]
[1645222864404,0.00416496,2770.5,2770.1,1.86542301]
[1645222864604,0.00416496,2770.5,2770.2,0.9027988]
[1645222864804,0.00245719,2770.4,2770.2,0.9027988]
[1645222865408,0.00245719,2770.4,2770.2,11.8327988]
[1645222865605,0.00416496,2770.5,2770.3,12.73506]
[1645222865803,0.00416496,2770.5,2770.3,13.93761]
[1645222866004,0.00416496,2770.5,2770.4,10.93]
[1645222866449,0.00416496,2770.5,2770.4,11.83252]
[1645222867553,0.00416496,2770.5,2770.4,15.33252]
[1645222867751,1.34399589,2771.8,2770.4,15.33252]
[1645222867752,1.34399589,2771.9,2770.4,16.78266437]
[1645222867949,0.01531104,2771.1,2770.8,11.83238]
[1645222868149,0.01531104,2771.1,2771.0,10.93]
[1645222868353,0.03062208,2771.1,2771.0,14.73]
[1645222868653,1.77701776,2772.7,2771.0,14.73]
[1645222868654,0.00577877,2772.3,2771.0,14.73]
[1645222868850,0.00577877,2772.5,2771.8,0.87472846]
[1645222869050,2.03416017,2772.8,2771.8,2.67914236]
[1645222869253,1.34977466,2772.8,2771.8,2.67914236]
[1645222869453,0.00577877,2772.8,2771.8,2.67914236]
[1645222869852,0.00577877,2772.8,2771.8,6.17914236]
[1645222870101,0.00577877,2772.8,2771.9,0.902207]
[1645222870306,1.34399589,2773.1,2772.1,10.93]
[1645222870307,0.00577877,2773.1,2772.1,10.93]
[1645222870502,0.00577877,2773.1,2772.2,12.734118]
[1645222870702,0.00443613,2773.2,2772.2,12.734118]
[1645222870898,0.00443613,2773.2,2772.2,1.804118]
[1645222870899,0.00207681,2772.5,2772.2,1.804118]
[1645222871100,0.00207681,2772.5,2772.2,2.706177]
[1645222871499,0.00207681,2772.5,2772.2,1.804118]
[1645222871700,0.00443613,2773.2,2772.4,0.87605722]
[1645222871901,0.00245691,2772.5,2772.2,1.804118]
[1645222872501,0.00245691,2772.5,2772.2,2.7061596]
[1645222872804,0.00577877,2773.1,2772.2,2.7061596]
[1645222873003,0.00443613,2773.2,2772.2,2.7061596]
[1645222873204,0.00245691,2772.5,2772.2,2.7061596]
[1645222873406,0.00245691,2772.5,2772.2,3.6081296]
[1645222873742,0.00245691,2772.5,2772.3,0.62920064]
[1645222873940,0.00245691,2772.5,2772.3,4.12920064]
[1645222874141,0.04786447,2773.5,2772.6,0.9019286]
[1645222874341,0.00982612,2773.0,2772.6,1.2019286]
[1645222875139,0.00982612,2773.0,2772.9,0.81923795]
[1645222875345,0.04786447,2773.5,2772.9,0.81923795]
[1645222875544,0.04786447,2773.5,2773.0,0.9018841]
[1645222875545,0.00916914,2773.4,2773.0,0.9018841]
[1645222876541,0.0420857,2773.5,2772.9,0.81923795]
[1645222876744,0.00229257,2773.3,2772.9,1.72109435]
[1645222877342,0.00229257,2773.3,2772.9,0.81923795]
[1645222877598,0.00229257,2773.3,2772.9,1.11923795]
[1645222877793,0.0420857,2773.5,2772.9,12.95107975]
[1645222877997,0.00229259,2773.2,2772.9,12.95107975]
[1645222878293,0.00229259,2773.2,2773.0,1.3]
[1645222878691,0.00229259,2773.2,2773.0,2.20168]
[1645222878894,0.0420857,2773.5,2773.0,2.20168]
[1645222879093,0.0420857,2773.5,2773.0,1.3]
[1645222879294,0.00229259,2773.2,2773.1,10.93]
[1645222879496,0.00229259,2773.2,2773.1,8.47811957]
[1645222879696,0.00916898,2773.7,2773.1,8.77811957]
[1645222879898,0.05,2774.1,2773.3,8.47811957]
[1645222880095,0.05,2774.1,2773.5,0.90149]
[1645222880297,0.04149491,2774.0,2773.5,0.90149]
[1645222880502,0.04149491,2774.0,2773.8,0.7927424]
[1645222880702,0.04149491,2774.0,2773.6,0.3]
[1645222880899,0.04149491,2774.0,2773.8,0.9015796]
[1645222881102,0.04149491,2774.0,2773.4,2.1029956]
[1645222881753,0.04149491,2774.0,2773.5,0.73051852]
[1645222882454,0.04149491,2774.0,2773.6,0.901629]
[1645222883158,0.04149491,2774.0,2773.6,1.803209]
[1645222883358,0.04149491,2774.0,2773.7,0.3]
[1645222883954,0.04395161,2774.0,2773.7,0.3]
[1645222884756,0.04395161,2774.0,2773.7,1.20153]
[1645222884997,0.04149491,2774.0,2773.7,1.20153]
[1645222885190,0.04395161,2774.0,2773.7,1.20153]
[1645222885897,0.04395161,2774.0,2773.7,2.10305]
[1645222886190,0.04149491,2774.0,2773.7,2.10305]
[1645222886391,0.04395161,2774.0,2773.7,2.10305]
[1645222887392,0.04149491,2774.0,2773.7,2.10305]
[1645222887593,0.04395161,2774.0,2773.7,2.10305]
[1645222887895,0.04395161,2774.0,2773.7,3.00455]
[1645222888092,0.04395161,2774.0,2773.7,13.93535]
[1645222888399,0.04395161,2774.0,2773.7,6.50535]
[1645222888594,0.04149491,2774.0,2773.7,6.50535]
[1645222888845,0.04149491,2774.0,2773.8,1.0]
[1645222888846,0.04395161,2774.0,2773.8,1.0]
[1645222889047,0.04395161,2774.0,2773.8,2.80286]
[1645222889248,0.04395161,2774.0,2773.9,0.3]
[1645222889646,0.04149491,2774.0,2773.9,0.3]
[1645222890846,0.04149491,2774.0,2773.7,1.8029138]
[1645222891246,0.04092648,2773.9,2773.7,1.8029138]
[1645222891646,0.04035806,2773.8,2773.6,0.0008]
[1645222892248,0.04035806,2773.8,2773.6,0.9025039]
[1645222892500,0.04274346,2773.8,2773.6,0.9025039]
[1645222893088,4.346e-05,2773.8,2773.6,0.0008]
[1645222893289,0.91968152,2774.7,2773.8,0.0008]
[1645222893693,0.91968152,2774.7,2773.4,1.8019935]
[1645222893694,0.0023854,2773.8,2773.4,1.8019935]
[1645222894392,0.0023854,2773.8,2773.2,1.8034214]
[1645222894594,1.80361,2774.5,2773.2,1.8034214]
[1645222894792,0.3,2774.5,2773.2,1.8034214]
[1645222894990,0.01802152,2774.7,2773.2,3.1034214]
[1645222895288,0.01802152,2774.7,2773.2,3.9066714]
[1645222895289,0.90167,2774.6,2773.2,3.9066714]
[1645222895489,0.90167,2774.6,2773.2,2.1034214]
[1645222895490,0.90176,2774.6,2773.2,2.1034214]
[1645222895689,0.90176,2774.6,2773.4,0.71317356]
[1645222895690,0.65909615,2774.5,2773.4,0.71317356]
[1645222896089,0.65909615,2774.5,2773.4,0.3]
[1645222896349,0.90189,2774.2,2773.4,0.3]
[1645222896543,5.0,2774.3,2773.0,0.9018632]
[1645222896745,5.3,2774.3,2773.0,0.9018632]
[1645222896943,5.25,2774.3,2773.0,0.9018632]
[1645222897145,0.25,2774.3,2773.5,0.00133113]
[1645222897344,5.30364,2774.4,2773.5,0.00133113]
[1645222897551,1.69518132,2774.0,2773.5,0.00053113]
[1645222897745,0.88146192,2774.0,2773.5,0.00053113]
[1645222898147,0.88146192,2774.0,2772.9,1.8036772]
[1645222898445,0.88146192,2774.0,2772.9,2.1036772]
[1645222898850,1.70443302,2774.0,2773.0,0.84664362]
[1645222899045,1.70443302,2774.0,2773.0,1.14664362]
[1645222899447,0.8229711,2774.0,2773.0,1.14664362]
[1645222899648,0.8229711,2774.0,2772.9,3.0054672]
[1645222899996,0.90179,2774.2,2772.9,3.0054672]
[1645222900189,0.90179,2774.2,2773.1,0.9018491]
[1645222900388,0.90179,2774.2,2773.1,1.2018491]
[1645222901187,0.85179,2774.2,2773.4,0.89293416]
[1645222901588,0.85179,2774.2,2773.4,0.3]
[1645222901988,0.85179,2774.2,2773.7,0.00132906]
[1645222902988,0.85179,2774.2,2773.4,0.3]
[1645222903188,0.85179,2774.2,2773.8,0.001329]
[1645222903591,3.83993312,2774.4,2773.8,0.001329]
[1645222903592,1.2059,2774.4,2773.8,0.001329]
[1645222903853,0.0024563,2774.5,2773.8,0.001329]
[1645222904054,2.888,2774.6,2773.6,1.2016856]
[1645222904451,0.00245641,2774.5,2773.8,0.001329]
[1645222905152,0.00245641,2774.5,2773.9,0.901577]
[1645222905454,0.01802152,2774.7,2773.9,0.901577]
[1645222905652,0.00245645,2774.5,2773.9,0.901577]
[1645222906454,0.01802152,2774.7,2773.9,0.901577]
[1645222906855,0.00245649,2774.5,2773.9,0.901577]
[1645222907697,0.01802152,2774.7,2773.9,0.901577]
[1645222908098,0.00245649,2774.5,2774.0,0.85626431]
[1645222909000,0.01802152,2774.7,2774.0,1.15626431]
[1645222909203,0.01802152,2774.7,2774.1,11.23]
[1645222909598,0.01802152,2774.7,2774.1,10.93]
[1645222909899,0.01802152,2774.7,2774.2,0.90129]
[1645222910299,0.01802152,2774.7,2774.3,1.80254]
[1645222910500,0.01802152,2774.7,2774.3,2.10254]
[1645222911100,0.01802152,2774.7,2774.4,0.9013]
[1645222911348,0.01802152,2774.7,2774.4,1.8026032]
[1645222911546,0.01802152,2774.7,2774.5,0.3]
[1645222912449,0.01802152,2774.7,2774.5,1.20128]
[1645222912651,0.01802152,2774.7,2774.5,0.3]
[1645222912848,0.01802152,2774.7,2774.4,1.8026132]
[1645222912849,0.02047624,2774.7,2774.4,1.8026132]
[1645222913148,0.02047624,2774.7,2774.5,0.3]
[1645222913748,0.01802152,2774.7,2774.5,0.3]
[1645222913962,0.02047624,2774.7,2774.5,0.3]
[1645222915013,0.01802152,2774.7,2774.5,0.3]
[1645222915204,0.02047624,2774.7,2774.5,0.3]
[1645222916205,0.01802152,2774.7,2774.5,0.3]
[1645222916405,0.02047624,2774.7,2774.5,0.3]
[1645222917306,0.01802152,2774.7,2774.5,0.3]
[1645222917710,0.02047624,2774.7,2774.5,0.3]
[1645222918509,0.01802152,2774.7,2774.5,0.3]
[1645222918750,0.02047624,2774.7,2774.5,0.3]
[1645222919752,0.01802152,2774.7,2774.5,0.3]
[1645222919949,0.02047624,2774.7,2774.5,0.3]
[1645222920849,0.01802152,2774.7,2774.5,0.3]
[1645222921247,0.02047624,2774.7,2774.5,0.3]
[1645222922048,0.01802152,2774.7,2774.5,0.3]
[1645222922491,0.02047624,2774.7,2774.5,0.3]
[1645222923289,0.01802152,2774.7,2774.5,0.3]
[1645222923692,0.02047624,2774.7,2774.3,2.1026064]
[1645222923889,0.02047624,2774.7,2774.3,3.90397839]
[1645222924089,0.02047624,2774.7,2774.3,14.83397839]
[1645222924290,0.02047624,2774.7,2774.4,0.9013]
[1645222924493,0.01802152,2774.7,2774.4,0.9013]
[1645222924890,0.00245473,2774.6,2774.4,0.9013]
[1645222925292,0.00245473,2774.6,2774.4,1.8026]
[1645222925491,0.00245473,2774.6,2774.5,0.9013513]
[1645222925692,0.01802152,2774.7,2774.5,2.1025713]
[1645222925891,0.01802152,2774.7,2774.6,0.3]
[1645222926944,0.01802152,2774.7,2774.6,0.98807635]
[1645222927343,0.01802152,2774.7,2774.6,11.91807635]
[1645222927943,0.01802152,2774.7,2774.6,15.41807635]
[1645222928144,0.01802152,2774.7,2774.6,4.48807635]
[1645222928344,0.01802152,2774.7,2774.6,15.41807635]
[1645222928543,0.00245471,2774.8,2774.6,14.73]
[1645222928745,0.00245471,2774.8,2774.7,10.93]
[1645222928943,0.00245471,2774.8,2774.7,12.73212]
[1645222929343,0.00574988,2775.6,2774.7,12.73212]
[1645222929545,0.00981732,2775.3,2774.9,0.9011031]
[1645222929746,0.00981732,2775.3,2774.9,1.2011031]
[1645222930593,1.31974577,2775.6,2774.9,1.2011031]
[1645222931093,0.00245465,2775.2,2774.9,1.2011031]
[1645222931495,0.0415815,2775.9,2774.9,1.2011031]
[1645222932997,0.68532728,2775.7,2774.9,1.2011031]
[1645222935651,0.68532728,2775.7,2775.2,0.00135902]
[1645222935848,0.00245427,2775.8,2775.2,0.00055902]
[1645222936547,0.0415815,2775.9,2774.9,0.3]
[1645222936750,0.0415815,2775.9,2774.8,3.547]
[1645222936948,0.68085665,2775.5,2774.8,3.547]
[1645222937598,0.68085665,2775.5,2774.8,4.448194]
[1645222937797,0.68085665,2775.5,2774.8,1.201194]
[1645222940002,1.38396432,2775.9,2774.8,1.201194]
[1645222940203,0.0415815,2775.9,2774.8,1.25154036]
[1645222940405,0.00245421,2775.8,2775.0,0.0013571]
[1645222941348,0.78298665,2775.5,2774.9,0.3]
[1645222941547,0.78298665,2775.5,2775.3,0.00135697]
[1645222942348,0.90371439,2775.8,2775.3,0.00135697]
[1645222942547,0.90126,2775.8,2774.8,0.05034636]
[1645222942951,0.00245439,2775.8,2775.3,0.00135697]
[1645222943748,1.2294815,2775.9,2774.8,0.05034636]
[1645222943950,0.88203779,2775.6,2775.3,0.00135697]
[1645222945009,0.88203779,2775.6,2774.8,0.05034636]
[1645222945209,0.88203779,2775.6,2775.3,0.00135697]
[1645222946207,0.88203779,2775.6,2774.9,0.9011282]
[1645222946409,0.88203779,2775.6,2775.3,0.00135697]
[1645222947408,0.88203779,2775.6,2774.9,1.8022171]
[1645222947409,0.88203779,2775.6,2774.9,3.0033271]
[1645222947611,0.88203779,2775.6,2775.3,0.00135697]
[1645222948512,0.88203779,2775.6,2775.1,0.9011192]
[1645222948744,0.88203779,2775.6,2775.3,0.00135697]
[1645222949746,0.88203779,2775.6,2775.1,0.8511192]
[1645222949946,0.88203779,2775.6,2775.3,0.00135697]
[1645222950948,0.88203779,2775.6,2775.1,0.8511192]
[1645222951152,0.88203779,2775.6,2775.3,0.00135697]
[1645222952150,1.2294815,2775.9,2775.2,0.3]
[1645222952348,1.2294815,2775.9,2775.3,0.90215785]
[1645222952349,0.00238064,2775.8,2775.3,0.90215785]
[1645222953399,0.67626767,2775.7,2775.3,0.9010469]
[1645222953603,0.67626767,2775.7,2775.3,0.90215785]
[1645222954000,0.67626767,2775.7,2775.3,0.00111095]
[1645222954500,0.67626767,2775.7,2775.2,0.3]
[1645222954700,0.67626767,2775.7,2775.1,0.9011101]
[1645222954900,0.67626767,2775.7,2775.3,0.00111095]
[1645222955704,0.67626767,2775.7,2775.1,0.9011101]
[1645222956104,0.67626767,2775.7,2775.3,0.00111095]
[1645222956948,0.67626767,2775.7,2774.9,1.8022171]
[1645222957148,0.67626767,2775.7,2775.3,0.00114675]
[1645222958147,0.67626767,2775.7,2774.9,2.1022171]
[1645222958347,0.0415815,2775.9,2774.9,1.8022171]
[1645222958348,0.83128763,2775.0,2774.9,1.8022171]
[1645222958547,0.83128763,2775.0,2774.8,0.05034636]
[1645222959650,0.83128763,2775.0,2774.8,0.05149332]
[1645222960499,0.83128763,2775.0,2774.8,0.05034636]
[1645222960999,0.83128763,2775.0,2774.8,0.05149098]
[1645222961798,0.83128763,2775.0,2774.8,0.05034636]
[1645222961998,0.83128763,2775.0,2774.8,0.05149098]
[1645222962399,0.83128763,2775.0,2774.8,0.00114462]
[1645222963000,0.83128763,2775.0,2774.3,1.53105562]
[1645222963202,0.83128763,2775.0,2774.8,0.00114462]
[1645222964249,0.83128763,2775.0,2774.3,1.53105562]
[1645222964446,0.83128763,2775.0,2774.8,0.00114209]
[1645222965451,0.83128763,2775.0,2774.1,1.53116556]
[1645222965647,0.83128763,2775.0,2774.8,0.00114209]
[1645222966648,0.83128763,2775.0,2773.8,1.53124574]
[1645222966853,0.83128763,2775.0,2774.8,0.00114209]
[1645222967816,0.75298682,2774.2,2773.9,1.53124574]
[1645222968017,1.20155,2774.9,2774.8,0.00114246]
[1645222968018,0.3,2774.9,2774.8,0.00114246]
[1645222968213,0.3,2774.9,2774.8,0.00034246]
[1645222968214,5.14238282,2774.9,2774.8,0.00034246]
[1645222968415,2.86868282,2774.9,2774.8,0.00034246]
[1645222968618,3.42793,2774.9,2774.8,0.00034246]
[1645222968915,3.42793,2774.9,2773.2,1.53145452]
[1645222969115,0.71607025,2773.8,2773.3,1.53145452]
[1645222969315,0.71607025,2773.8,2773.1,1.53145452]
[1645222969519,0.71607025,2773.8,2773.2,1.53145452]
[1645222969717,0.71607025,2773.8,2773.3,1.53145452]
[1645222969915,0.71607025,2773.8,2773.4,1.53145452]
[1645222970116,0.71607025,2773.8,2773.5,1.53145452]
[1645222970313,0.71607025,2773.8,2773.0,2.2417]
[1645222970314,0.71607025,2773.8,2773.6,1.53145452]
[1645222970515,0.71607025,2773.8,2773.0,2.2417]
[1645222970516,0.71607025,2773.8,2773.1,2.43315762]
[1645222970714,0.71607025,2773.8,2773.2,1.53157587]
[1645222970916,0.71607025,2773.8,2773.3,1.53157587]
[1645222971117,0.71607025,2773.8,2773.4,1.53157587]
[1645222971354,0.71607025,2773.8,2773.5,1.53157587]
[1645222971552,0.71607025,2773.8,2773.0,2.2417]
[1645222971753,0.71607025,2773.8,2773.4,0.00135588]
[1645222972656,0.71607025,2773.8,2773.2,1.53161534]
[1645222972657,1.01607025,2773.8,2773.2,1.53161534]
[1645222972854,1.01607025,2773.8,2773.5,0.00135585]
[1645222973659,1.91795025,2773.8,2773.5,0.00135585]
[1645222973859,1.91795025,2773.8,2772.9,1.53161534]
[1645222973860,1.61795025,2773.8,2772.9,1.53161534]
[1645222974058,1.61795025,2773.8,2773.5,0.00135583]
[1645222975109,1.61795025,2773.8,2772.6,9.0803]
[1645222975110,1.61795025,2773.8,2772.8,1.83171712]
[1645222975310,1.61795025,2773.8,2772.9,1.53171712]
[1645222975511,1.61795025,2773.8,2772.6,7.49]
[1645222975512,1.61795025,2773.8,2773.5,0.00135583]
[1645222976109,1.61795025,2773.8,2772.7,1.53173565]
[1645222976514,1.91795025,2773.8,2773.5,0.00135583]
[1645222976911,1.61795025,2773.8,2773.5,0.00135583]
[1645222977314,1.61795025,2773.8,2773.1,7.49]
[1645222977810,1.61795025,2773.8,2773.5,0.00135583]
[1645222978512,1.61795025,2773.8,2772.6,0.9018865]
[1645222978750,1.91795025,2773.8,2772.7,1.53174218]
[1645222978957,1.91795025,2773.8,2773.5,0.00135583]
[1645222979862,1.91795025,2773.8,2772.7,1.53174218]
[1645222980056,1.61795025,2773.8,2773.5,0.00110995]
[1645222980257,1.91795025,2773.8,2773.5,0.00110995]
[1645222981058,1.91795025,2773.8,2772.7,1.83174218]
[1645222981261,1.91795025,2773.8,2773.5,0.00110995]
[1645222982260,1.91795025,2773.8,2772.7,1.53178749]
[1645222982509,1.91795025,2773.8,2773.5,0.00110995]
[1645222983506,1.91795025,2773.8,2772.6,1.2018871]
[1645222983710,1.91795025,2773.8,2773.5,0.00110995]
[1645222984707,0.66087433,2773.3,2772.7,1.53181107]
[1645222984907,0.66087433,2773.3,2772.6,1.2018871]
[1645222985809,0.66087433,2773.3,2772.6,0.3]
[1645222986009,0.66087433,2773.3,2772.8,0.00114602]
[1645222987056,0.66087433,2773.3,2772.5,1.9342]
[1645222987057,0.66087433,2773.3,2772.5,2.2342]
[1645222987256,0.66087433,2773.3,2772.9,0.00114598]
[1645222988254,0.66087433,2773.3,2772.5,1.9342]
[1645222988656,0.66087433,2773.3,2773.0,0.00114075]
[1645222989456,0.66087433,2773.3,2772.5,1.9342]
[1645222989657,0.66087433,2773.3,2773.0,0.00114073]
[1645222990715,0.66087433,2773.3,2772.5,1.9342]
[1645222990912,0.66087433,2773.3,2773.0,0.00114073]
[1645222991911,0.00098507,2773.0,2772.6,7.49]
[1645222993211,0.00098507,2773.0,2772.7,0.00114163]
[1645222994251,0.00098507,2773.0,2772.6,7.49]
[1645222994447,0.00098507,2773.0,2772.7,0.00114161]
[1645222995452,0.00098507,2773.0,2772.6,7.49]
[1645222995651,0.00098507,2773.0,2772.7,0.0011415]
[1645222996650,0.00098507,2773.0,2772.6,7.49]
[1645222996854,0.00098507,2773.0,2772.7,0.0011415]
[1645222997051,0.00044113,2772.7,2772.6,7.49]
[1645222997251,0.00044113,2772.7,2772.6,9.02182771]
[1645223006203,0.00044113,2772.7,2772.6,1.53182771]
[1645223006399,0.00044113,2772.7,2772.5,0.00112597]
[1645223007400,0.00044113,2772.7,2772.4,1.83182771]
[1645223007599,0.00044113,2772.7,2772.5,1.53182771]
[1645223007798,0.00044113,2772.7,2772.5,1.5329537]
[1645223007997,0.00044113,2772.7,2772.6,1.53182771]
[1645223008504,0.00044113,2772.7,2772.5,0.00112599]
[1645223008752,0.00044113,2772.7,2772.4,1.53182771]
[1645223008952,0.00044113,2772.7,2772.5,0.00112597]
[1645223009453,1.77166857,2773.4,2772.5,0.00112597]
[1645223009855,1.77166857,2773.4,2772.4,1.53182771]
[1645223010057,1.77166857,2773.4,2772.8,0.00114928]
[1645223010355,1.77166857,2773.4,2772.6,7.09114928]
[1645223010555,1.77166857,2773.4,2772.7,1.53182771]
[1645223010758,1.77166857,2773.4,2772.8,1.53182771]
[1645223010957,1.77166857,2773.4,2772.9,1.53182771]
[1645223011160,2.07166857,2773.4,2772.9,1.53182771]
[1645223011357,2.07166857,2773.4,2773.0,1.53182771]
[1645223011558,2.07166857,2773.4,2773.1,1.53182771]
[1645223011756,2.07166857,2773.4,2772.5,7.49]
[1645223011955,0.90199,2773.4,2772.6,1.53183342]
[1645223012155,5.0,2773.7,2772.6,5.03183342]
[1645223012355,5.3,2773.7,2772.7,1.53183342]
[1645223013099,0.86328566,2773.4,2772.8,1.53183342]
[1645223013398,0.86328566,2773.4,2772.9,1.53183342]
[1645223013599,0.86328566,2773.4,2773.0,1.53183342]
[1645223013803,0.86328566,2773.4,2773.1,1.53183342]
[1645223014000,0.86328566,2773.4,2772.6,2.22086951]
[1645223014200,0.86328566,2773.4,2773.2,1.53183342]
[1645223014401,0.86328566,2773.4,2773.3,1.53183342]
[1645223014604,0.86328566,2773.4,2772.7,2.70783342]
[1645223014904,0.86328566,2773.4,2772.8,1.53183342]
[1645223015101,0.86328566,2773.4,2772.9,1.53183342]
[1645223015304,0.86328566,2773.4,2773.0,1.53183342]
[1645223015501,5.3,2773.7,2773.1,1.53183342]
[1645223015702,5.3,2773.7,2772.6,2.22222004]
[1645223015901,5.3,2773.7,2772.7,1.53183342]
[1645223016101,5.3,2773.7,2772.6,2.22222004]
[1645223016357,5.3,2773.7,2772.7,1.53183342]
[1645223016552,5.3,2773.7,2772.8,1.53183342]
[1645223016553,0.77910534,2773.6,2772.8,1.53183342]
[1645223016751,0.77910534,2773.6,2772.9,1.53183342]
[1645223016950,0.77910534,2773.6,2773.0,1.53183342]
[1645223017158,0.90194,2773.6,2773.1,1.53183342]
[1645223017354,3.05336,2773.9,2773.2,1.53183342]
[1645223017553,1.80386,2773.9,2773.3,1.53183342]
[1645223017755,2.10386,2773.9,2773.4,1.53183342]
[1645223017953,1.80386,2773.9,2773.5,1.53183342]
[1645223018154,1.70890392,2773.8,2773.0,7.49]
[1645223018353,1.70890392,2773.8,2773.1,1.53165521]
[1645223018555,2.61085392,2773.8,2773.2,1.53165521]
[1645223018755,2.61085392,2773.8,2773.3,1.53165521]
[1645223019057,1.70890392,2773.8,2773.4,1.53165521]
[1645223019253,1.70890392,2773.8,2773.0,7.49]
[1645223019254,1.70890392,2773.8,2773.1,1.53165521]
[1645223019455,1.70890392,2773.8,2773.2,1.53165521]
[1645223019656,1.70890392,2773.8,2773.3,1.53165521]
[1645223019856,1.70890392,2773.8,2773.4,1.53165521]
[1645223020104,1.70890392,2773.8,2773.5,1.53165521]
[1645223020304,1.70890392,2773.8,2773.6,1.53165521]
[1645223020508,1.70890392,2773.8,2773.0,7.79]
[1645223020703,1.70890392,2773.8,2773.1,1.53165083]
[1645223021105,1.70890392,2773.8,2773.1,1.83165083]
[1645223021307,1.70890392,2773.8,2773.2,1.53165083]
[1645223021912,0.80702392,2773.8,2773.2,1.53165083]
[1645223022506,0.80702392,2773.8,2773.3,1.53165083]
[1645223022906,0.80702392,2773.8,2773.4,1.53165083]
[1645223023107,0.80702392,2773.8,2773.5,1.53165083]
[1645223023307,0.90182,2774.0,2773.6,1.53165083]
[1645223023508,0.00443613,2774.1,2773.6,1.53165083]
[1645223023762,0.00443613,2774.1,2773.7,1.53165083]
[1645223024160,0.00443613,2774.1,2773.8,1.53165083]
[1645223024365,0.00443613,2774.1,2773.9,1.53165083]
[1645223024560,1.80346,2774.5,2773.3,4.6645]
[1645223024761,1.1525,2774.6,2773.3,5.65353609]
[1645223024962,0.23054779,2775.0,2773.4,3.22068692]
[1645223024963,1.34965615,2775.0,2773.4,3.22068692]
[1645223025160,1.34965615,2775.0,2773.5,5.03165083]
[1645223025360,2.86831549,2775.1,2773.6,3.43316083]
[1645223025561,2.86831549,2775.1,2773.7,7.09762083]
[1645223025562,2.8585,2775.1,2773.7,7.09762083]
[1645223025763,0.91128637,2775.1,2773.8,1.53165083]
[1645223025963,0.00981637,2775.1,2773.9,4.4014608]
[1645223026168,0.00981637,2775.1,2774.0,1.83165083]
[1645223026363,0.00981637,2775.1,2774.1,5.03165083]
[1645223026666,0.86411884,2775.0,2774.2,1.53165083]
[1645223026865,0.86411884,2775.0,2774.2,1.83165083]
[1645223027062,0.86411884,2775.0,2774.3,1.53165083]
[1645223027264,0.86411884,2775.0,2774.3,1.83165083]
[1645223027512,0.86411884,2775.0,2774.4,1.53165083]
[1645223029005,3.01612,2775.6,2774.4,1.53165083]
[1645223029006,1.34965615,2775.7,2774.5,3.5]